[Event "Lliga Catalana DH 2023"]
[Site "Catalonia"]
[Date "2023.02.04"]
[Round "3.3"]
[White "Vidal Zamora, Alex"]
[Black "Dominguez Pons, Eric"]
[Result "1/2-1/2"]
[ECO "D46"]
[WhiteElo "2399"]
[BlackElo "2333"]
[Annotator "TA"]
[PlyCount "171"]
[EventDate "2023.01.24"]
[EventType "team-tourn"]
[EventCountry "ESP"]
[SourceTitle "playchess.com"]
[Source "ChessBase"]
[SourceQuality "1"]
[TimeControl "40/5400+30:1800+30"]

{[%evp 15,171,3,9,0,12,3,0,-9,0,0,0,0,0,0,0,0,0,0,0,0,0,0,1,0,0,-4,-1,-65,31,10,30,14,33,7,27,38,59,64,55,66,83,45,73,69,70,12,11,11,11,10,11,4,3,6,8,15,8,0,0,0,0,0,2,2,2,2,25,25,25,25,25,25,25,0,0,0,0,0,8,8,8,0,0,0,0,0,0,0,69,69,69,69,69,69,69,69,69,0,69,43,43,43,43,43,43,43,43,43,69,69,69,43,69,43,69,69,69,69,69,43,69,69,69,43,69,69,69,69,154,69,69,69,69,69,69,0,69,69,69,69,69,69,69,0,69,69,69,0,43,0,0,0,0,0,0,0,0,0]} 1. d4 {[%emt 0:00:05]} d5 {[%emt 0:00:15]} 2. c4 {[%emt 0:00:24]} c6 {[%emt 0:00:14]} 3. Nf3 {[%emt 0:00:41]} Nf6 {[%emt 0:00:24]} 4. Nc3 {[%emt 0:00:40]} e6 {[%emt 0:00:51]} 5. e3 {[%emt 0:00:29]} Nbd7 {[%emt 0:01:13]} 6. Qc2 {[%emt 0:01:01]} Bd6 {[%emt 0:01:05]} 7. Bd3 {[%emt 0:02:02]} dxc4 {[%emt 0:03:58]} 8. Bxc4 {[%emt 0:00:08]} b5 {[%emt 0:01:54]} 9. Be2 {[%emt 0:00:31] D46: Semi-Slav: 5 e3 Nbd7 6 Bd3, Black avoids the Meran.} Qc7 {[%emt 0:04:20]} 10. e4 {[%emt 0:08:07]} e5 {[%emt 0:02:28]} 11. Bg5 {[%emt 0:02:43]} O-O {[%emt 0:10:31] [#]} 12. Rc1 $146 {[%emt 0:09:30][%cal Oc3b5] And now Nxb5! would win.} ({Predecessor:} 12. dxe5 Bxe5 13. Nxe5 Qxe5 14. f4 Qc5 15. Qd3 Qb4 16. O-O Nc5 17. Qd6 Nfxe4 18. Nxe4 Qxe4 {½-½ Caetano,R (2219)-De Oliveira,I (1857) Santa Catarina State-ch 65th 2021 (2)}) 12... a6 {[%emt 0:11:39]} 13. dxe5 {[%emt 0:25:20]} Nxe5 {[%emt 0:01:42]} 14. Bxf6 {[%emt 0:02:54]} Nxf3+ {[%emt 0:16:53]} 15. Bxf3 {[%emt 0:02:40]} gxf6 {[%emt 0:00:06]} 16. h3 {[%emt 0:01:04]} Qe7 {[%emt 0:10:07]} 17. Kf1 {[%emt 0:03:40]} Be6 {[%emt 0:02:46]} 18. g3 {[%emt 0:03:24]} a5 {[%emt 0:01:04]} 19. Kg2 {[%emt 0:03:02]} Be5 {[%emt 0:00:41]} 20. Bg4 {[%emt 0:02:00]} Rfd8 {[%emt 0:04:11]} 21. Nd1 {[%emt 0:02:50]} (21. Rhe1 $11) 21... Rac8 {[%emt 0:03:58]} (21... Bc4 $15 22. Bf5 (22. b3 Bd3 $17) 22... Ra6) 22. Re1 {[%emt 0:04:24]} Qb4 {[%emt 0:00:49]} 23. Re2 {[%emt 0:00:37]} Bd4 {[%emt 0:02:14]} 24. a3 {[%emt 0:01:52]} (24. Ne3 $5) 24... Qe7 {[%emt 0:01:19]} 25. Ne3 {[%emt 0:01:49]} Bxe3 {[%emt 0:04:31]} 26. Rxe3 {[%emt 0:00:18]} Rd4 {[%emt 0:00:58]} 27. Qe2 {[%emt 0:06:13]} Qd6 {[%emt 0:03:41]} 28. Rc2 {[%emt 0:02:11]} Rd8 {[%emt 0:00:57][%cal Bc8d8,Bd8d6,Bd6d3,Bd3c3][%mdl 32]} 29. Bxe6 {[%emt 0:01:45]} (29. Qf3 {is interesting.} Kg7 30. Bf5 Bxf5 31. Qxf5 Re8 32. Rec3) 29... Qxe6 {[%emt 0:00:49]} 30. Qg4+ {[%emt 0:00:46]} (30. Rc5 $14) 30... Qxg4 $11 {[%emt 0:00:40]} 31. hxg4 {[%emt 0:00:01][%mdl 4096] Endgame KRR-KRR} R8d6 {[%emt 0:01:15]} 32. Kf3 {[%emt 0:01:34]} Rd2 {[%emt 0:02:30]} 33. Rec3 {[%emt 0:01:45]} R6d3+ {[%emt 0:00:40]} 34. Kf4 {[%emt 0:00:50]} Rxc3 {[%emt 0:00:36]} 35. Rxd2 {[%emt 0:00:02] KR-KR} Rc4 {[%emt 0:00:28]} 36. Kf5 {[%emt 0:01:40]} Kg7 {[%emt 0:00:16]} 37. f3 {[%emt 0:01:31]} Rc5+ {[%emt 0:00:59]} 38. Kf4 {[%emt 0:00:01]} Rc1 {[%emt 0:00:06]} 39. g5 {[%emt 0:01:24]} fxg5+ {[%emt 0:02:35]} 40. Kxg5 {[%emt 0:00:01]} b4 {[%emt 0:00:11]} 41. axb4 {[%emt 0:31:02]} axb4 {[%emt 0:30:05]} 42. e5 {[%emt 0:00:24]} Re1 {[%emt 0:02:47]} 43. f4 {[%emt 0:00:29]} Re3 {[%emt 0:00:19]} 44. g4 {[%emt 0:00:17]} b3 {[%emt 0:00:07] Against Rc2} 45. Rd7 {[%emt 0:02:07]} h6+ {[%emt 0:01:41]} 46. Kf5 {[%emt 0:00:12]} Re2 {[%emt 0:00:42]} 47. Rb7 {[%emt 0:00:58]} (47. Re7 $5 c5 $8 48. Rc7 $11 (48. e6 Rxe6 49. Rc7 Re2 $11)) 47... Re3 {[%emt 0:00:58]} (47... Rxb2 $2 48. e6 Rf2 49. Rxf7+ (49. exf7 b2 $11) 49... Kg8 50. Kg6 $18) 48. Re7 {[%emt 0:02:50]} c5 $1 {[%emt 0:00:33]} (48... Re2 49. e6 Rxe6 50. Rxe6 fxe6+ 51. Kxe6 $18) 49. Rc7 {[%emt 0:01:07]} (49. Rb7 $5) 49... Re2 {[%emt 0:00:13]} 50. Rxc5 {[%emt 0:00:23]} Rxb2 {[%emt 0:00:05]} 51. Rb5 {[%emt 0:00:06]} h5 {[%emt 0:01:45]} 52. gxh5 $14 {[%emt 0:01:12][%cal Oh5h6] [#] Threatens to win with h6+!} Rh2 $1 {[%emt 0:00:14]} 53. Rxb3 {[%emt 0:01:25] Rg3+ would be deadly.} Rxh5+ {[%emt 0:00:06]} 54. Ke4 {[%emt 0:00:18]} Rh1 {[%emt 0:00:22]} 55. Rb6 {[%emt 0:00:19]} Rh2 {[%emt 0:01:00]} 56. Rb3 {[%emt 0:00:21]} Rh1 $1 {[%emt 0:00:10]} 57. Rg3+ {[%emt 0:00:31]} Kf8 {[%emt 0:00:13]} 58. Rg4 {[%emt 0:00:42]} Re1+ {[%emt 0:01:34]} 59. Kf5 {[%emt 0:00:03]} Rh1 {[%emt 0:00:16]} 60. Kf6 {[%emt 0:00:35] Black must now prevent f5.} Rh6+ {[%emt 0:00:13]} 61. Kg5 {[%emt 0:00:02]} Rg6+ {[%emt 0:00:54]} 62. Kf5 {[%emt 0:01:04]} Rh6 {[%emt 0:00:13]} 63. Rg2 {[%emt 0:00:58]} Ra6 {[%emt 0:00:24]} 64. Rh2 {[%emt 0:00:34]} Kg7 {[%emt 0:00:12]} 65. Rd2 {[%emt 0:00:16]} Rh6 {[%emt 0:00:22]} 66. Rd4 {[%emt 0:00:35]} Rh1 {[%emt 0:00:38]} 67. Rd3 {[%emt 0:00:20]} Rh2 {[%emt 0:00:15]} 68. Rg3+ {[%emt 0:00:55]} Kf8 {[%emt 0:00:06]} 69. Kg5 {[%emt 0:00:31]} Kg7 {[%emt 0:01:42]} 70. Rg4 {[%emt 0:00:27]} Re2 {[%emt 0:00:35]} 71. Rg1 {[%emt 0:00:32]} Re3 {[%emt 0:00:36] [#]} (71... Rf2 $1 $14) 72. Rh1 {[%emt 0:00:50]} ({White should play} 72. Kf5+ $1 $16 Kf8 73. Kf6) 72... Rg3+ {[%emt 0:00:17]} 73. Kf5 {[%emt 0:00:07]} Rg2 {[%emt 0:00:05]} 74. Rh4 {[%emt 0:00:13] Threatening mate with Rg4+.} Ra2 {[%emt 0:00:17]} 75. Kg5 {[%emt 0:00:14]} ({White should try} 75. Rg4+ $14 Kf8 76. Rg1) 75... Ra5 {[%emt 0:00:26]} (75... Rg2+ $11 76. Rg4 Rb2) 76. Rh6 {[%emt 0:01:33]} Ra1 {[%emt 0:00:14] ( -> ...Rg1+)} 77. Rd6 {[%emt 0:00:45]} Rg1+ {[%emt 0:00:26]} 78. Kf5 {[%emt 0:00:01]} Rh1 {[%emt 0:00:22]} 79. Rd3 {[%emt 0:00:29]} (79. Rd8 $14) 79... Rh5+ {[%emt 0:00:31]} (79... Rh2 $11) 80. Ke4 {[%emt 0:00:02]} Rh1 {[%emt 0:00:15]} 81. Rg3+ {[%emt 0:00:11]} Kf8 {[%emt 0:00:05]} 82. f5 {[%emt 0:00:01]} Ke7 $1 {[%emt 0:01:49] The position is equal.} 83. Rd3 {[%emt 0:00:21]} Re1+ {[%emt 0:00:30]} 84. Kd5 {[%emt 0:00:07]} f6 {[%emt 0:00:25]} 85. exf6+ {[%emt 0:00:22]} Kxf6 {[%emt 0:00:07]} 86. Rf3 {[%emt 0:00:07] Weighted Error Value: White=0.09 (flawless) /Black=0.09 (flawless)} 1/2-1/2

[Event "Lliga Catalana DH 2023"]
[Site "Catalonia"]
[Date "2023.02.04"]
[Round "3.4"]
[White "Iermito, Sebastian"]
[Black "Rizouk, Aimen"]
[Result "1-0"]
[ECO "C49"]
[WhiteElo "2528"]
[BlackElo "2454"]
[Annotator "TA"]
[PlyCount "168"]
[EventDate "2023.01.24"]
[EventType "team-tourn"]
[EventCountry "ESP"]
[SourceTitle "playchess.com"]
[Source "ChessBase"]
[SourceQuality "1"]
[TimeControl "40/5400+30:1800+30"]

{[%evp 13,168,4,0,0,0,0,0,0,0,0,0,0,10,8,15,-12,0,-6,35,14,11,10,48,20,7,14,11,9,158,166,219,202,343,347,444,439,421,193,191,198,197,107,108,108,122,121,122,0,122,0,131,110,116,110,108,93,102,95,95,100,103,89,141,150,140,145,143,143,151,137,161,0,160,0,144,120,130,127,126,125,137,123,162,161,172,178,187,191,231,217,198,0,241,0,162,0,232,240,227,239,216,207,210,172,134,159,222,237,273,291,366,364,356,361,327,274,287,170,132,130,130,0,340,0,297,291,268,252,344,337,401,391,400,422,604,575,731,673,916,898,2085,2070,1854,2020,5102,5089,9250,9250,29982,29983,29983,29984,29984,29984,29985,29986,29985]} 1. e4 e5 2. Nf3 Nc6 3. Nc3 Nf6 4. Bb5 Bb4 5. O-O O-O 6. Bxc6 dxc6 7. d3 Re8 {7...Nd7 is the hot move.} 8. Ne2 {C49: Four Knights: 4 Bb5 Bb4.} Nd7 9. Ng3 Nf8 10. Be3 {The position is equal.} Bd6 11. Nd2 {[#]} Ne6 $146 ({Predecessor:} 11... Ng6 12. Qf3 Be6 13. Nf5 Qd7 14. g4 c5 15. b3 f6 16. Kh1 Nf4 17. Rg1 g6 {½-½ Giri,A (2780)-Radjabov,T (2765) FTX Crypto Cup KO rapid 2021 (1.22)}) 12. Nc4 c5 13. Nxd6 cxd6 14. f4 exf4 15. Bxf4 d5 16. Be3 {Threatening Qf3.} (16. Bd2 $5 {[%cal Rd1h5]}) 16... f6 17. Qh5 dxe4 (17... b6 {simplifies} 18. Qxd5 Qxd5 19. exd5 Nc7) 18. Nxe4 {[%cal Oe4d6]} (18. dxe4 $5 {[%cal Ra1d1]} Bd7 19. e5 $11 (19. Bxc5 Qa5 $11)) 18... b6 $1 {[#]} 19. Nd6 $1 {[%mdl 64] Prevents Bb7. Deflection} Re7 {Prevents Qf7+} 20. Qf3 $36 {[%mdl 2048] White has some pressure.} Rb8 (20... Nc7 $1 $11 {keeps the balance.} 21. Bf4 Be6) 21. Qg3 $16 {White is much more active.} Rc7 (21... Nc7 $142) 22. Rae1 $18 Bd7 (22... b5 $142 23. Ne4 Kh8 24. Bxc5 Nxc5) 23. Bh6 {Hoping for Nf5.} Qf8 24. Ne4 f5 25. Nd6 (25. Qe5 $142 Qe7 26. Ng3) 25... f4 26. Bxf4 Nxf4 27. Qxf4 (27. Ne4 $18 Qf5 28. Rxf4 (28. Qxf4 Qxf4 29. Rxf4 Bc6 $16)) 27... Qxf4 $16 28. Rxf4 Bc6 29. Nf5 {Black must now prevent Ne7+.} Rbb7 30. Nd6 Rb8 31. Nf5 {Ne7+ would be deadly.} Rbb7 $1 32. Ref1 {[%cal Of5e7] White wants to mate with Ne7+!} h6 33. Nd6 Rb8 {Dodges Rf8+} 34. b3 Rd8 35. Ne4 Re7 36. Ng3 Rde8 37. h4 Re3 ({Black should play} 37... Re6) 38. Nf5 $1 Re1 39. Rxe1 Rxe1+ {[%mdl 4096] Endgame KRB-KRN} 40. Kf2 Re5 41. Ne3 Re7 42. Nf5 Re5 43. Ne3 Re7 $1 44. Nc4 Bd5 45. Nd2 Bc6 46. Nf3 Bb7 47. g4 Bc6 48. h5 Bd7 49. Nh4 Re8 50. Ng6 Be6 51. Kg3 Bd5 52. Kf2 $2 {Repels Re3} ({White should try} 52. c4 $18 Bf7 53. Re4) 52... Bc6 (52... Be6 $1 $11) 53. Nh4 Bd7 54. Ng6 $2 ({Better is} 54. Kf3 $18) 54... Bc6 $2 (54... Be6 $11 {and Black stays safe.}) 55. Rf5 $18 Bd7 56. Re5 Kf7 57. Kg3 Kf6 58. Rxe8 Bxe8 {KB-KN} 59. Nh4 Ke5 (59... Bd7 $16 60. Kf4 Bc6) 60. Nf3+ Kd5 61. Kf4 $1 Bd7 62. Nh4 Ke6 63. Nf5 Kf6 64. Nd6 {Prevents Be8.} Ke6 65. Ne4 (65. Nc4 $142 $1) 65... Be8 66. Ng3 {Strongly threatening Nf5.} Kf6 67. Nf5 $2 (67. Nf1 $16) 67... Bd7 $1 68. Nd6 Ke6 $1 {[#]} 69. Nc4 $1 Be8 70. Ne3 Bf7 {[#]} 71. Nf5 $1 Kf6 72. Nd6 {Prevents Be8. aiming for Nxf7.} Be6 73. Nb5 a5 (73... a6 $142) 74. a4 Ke7 75. Na3 Kd6 76. Nc4+ Kc6 77. Ne3 b5 78. Nf5 bxa4 79. bxa4 (79. Nxg7 $2 {loses.} a3 80. Nxe6 a2 $19) 79... Ba2 80. Nxg7 {Nf5 would kill now.} Bb1 81. g5 {White mates.} hxg5+ 82. Kxg5 Bxc2 83. h6 Bxd3 84. Nf5 Kd5 {Weighted Error Value: White=0.32/Black=0.28 (precise)} 1-0

[Event "Lliga Catalana DH 2023"]
[Site "Catalonia"]
[Date "2023.02.04"]
[Round "3.4"]
[White "Travesset Sagre, Jan"]
[Black "Siebrecht, Sebastian"]
[Result "1/2-1/2"]
[ECO "B37"]
[WhiteElo "2237"]
[BlackElo "2370"]
[Annotator "TA"]
[PlyCount "121"]
[EventDate "2023.01.24"]
[EventType "team-tourn"]
[EventCountry "ESP"]
[SourceTitle "playchess.com"]
[Source "ChessBase"]
[SourceQuality "1"]
[TimeControl "40/5400+30:1800+30"]

{[%evp 19,120,-25,-25,-27,-12,-14,0,0,0,-55,-14,-68,-66,-66,-67,-63,-65,-63,-63,-66,-58,-58,-58,-58,-59,-52,-66,-89,-78,-131,-134,-133,-133,-126,-81,-91,-78,-136,-143,-163,-163,-178,-177,-181,-77,-77,-77,-77,-77,-77,-77,-77,-77,-77,-67,-67,-67,-77,-67,-67,-67,-67,-67,-67,-52,-52,-52,-52,-40,-40,-40,-46,-46,-72,-72,-72,-72,-72,-72,-72,-72,-72,-72,-72,-72,-72,-72,-72,-72,-72,-46,-46,-13,-13,-13,-72,-13,-72,-13,-13,-13,-72,-72]} 1. d4 {[%emt 0:00:11]} g6 {[%emt 0:00:32]} 2. c4 {[%emt 0:06:50]} Bg7 {[%emt 0:00:07]} 3. Nf3 {[%emt 0:00:09][%cal Bg1f3,Bf3d4,Bd4c2,Bc2e3,Be3d5][%mdl 32]} c5 {[%emt 0:00:50]} 4. Nc3 {[%emt 0:04:59]} cxd4 {[%emt 0:00:13]} 5. Nxd4 {[%emt 0:00:01]} Nc6 {[%emt 0:00:05]} 6. Nc2 {[%emt 0:00:40]} d6 {[%emt 0:00:39]} 7. e4 {[%emt 0:00:50]} Bxc3+ {[%emt 0:02:29]} 8. bxc3 {[%emt 0:00:31]} Nf6 {[%emt 0:00:10]} 9. f3 {[%emt 0:07:51]} Qa5 {[%emt 0:01:59]} 10. Bd2 {[%emt 0:04:26]} O-O {[%emt 0:09:50]} 11. Ne3 {[%emt 0:46:18] [#] B37: Sicilian: Maroczy Bind with 5...Bg7, sidelines.} Re8 $146 {[%emt 0:15:31]} ({Predecessor:} 11... Ne5 12. Qb3 Bd7 13. h4 Rfc8 14. Nd5 Nxd5 15. cxd5 Qc5 16. Qb4 Qxb4 17. cxb4 Rc2 18. Be2 Rac8 {0-1 Rasmussen,A (2498)-Tari,A (2521) Wch Blitz 9th 2015 (16)}) 12. Be2 {[%emt 0:07:53]} Be6 {[%emt 0:01:53]} 13. O-O {[%emt 0:02:47] The position is equal.} Rac8 {[%emt 0:01:23]} 14. Qb3 {[%emt 0:08:42]} (14. Nd5 $11) 14... Ne5 {[%emt 0:10:21]} 15. Rab1 {[%emt 0:00:38]} (15. Qb5 $11 Qxb5 16. cxb5) 15... b6 $15 {[%emt 0:00:57]} 16. Nd5 {[%emt 0:03:40] [#]} Nxc4 $1 {[%emt 0:03:18][%mdl 64] Decoy} 17. Bxc4 {[%emt 0:00:12]} Qc5+ {[%emt 0:00:08]} 18. Be3 {[%emt 0:01:28]} Qxc4 {[%emt 0:00:03]} 19. Qxc4 {[%emt 0:00:21]} Rxc4 {[%emt 0:00:02]} 20. Nxf6+ {[%emt 0:00:13]} exf6 {[%emt 0:00:03]} 21. Bd4 {[%emt 0:00:12]} f5 {[%emt 0:01:26]} 22. exf5 {[%emt 0:00:23]} Bxf5 {[%emt 0:00:03]} 23. Rbe1 {[%emt 0:00:08][%cal Re1e8]} Re6 {[%emt 0:00:19]} 24. g4 {[%emt 0:02:10]} (24. Rd1 $142) 24... Bd3 $17 {[%emt 0:03:16]} 25. Rxe6 {[%emt 0:00:05]} fxe6 {[%emt 0:00:02][%mdl 4096] Endgame KRB-KRB} 26. Rd1 {[%emt 0:00:21]} Bc2 {[%emt 0:00:12]} 27. Rd2 {[%emt 0:01:29]} Ba4 {[%emt 0:00:07]} 28. f4 {[%emt 0:00:28]} (28. Bf6 $142) 28... Bc6 {[%emt 0:02:55]} 29. g5 Bd5 {[%emt 0:00:33]} 30. a3 {[%emt 0:00:51]} Ra4 {[%emt 0:00:04]} 31. Bf6 {[%emt 0:00:41] [#]} Kf7 {[%emt 0:00:41]} ({Stronger than} 31... Rxa3 32. c4 Bxc4 33. Rxd6 $17) (31... b5 $1 $19 {and Black stays clearly on top. Strongly threatening ...Kf7.} 32. Rb2 a6) 32. Rd4 {[%emt 0:00:08]} Rxd4 {[%emt 0:04:08]} ({Don't play} 32... Rxa3 33. c4 $11) 33. Bxd4 {[%emt 0:00:17] KB-KB} Ke7 {[%emt 0:00:01]} 34. Kf2 {[%emt 0:00:22]} Kd7 {[%emt 0:00:02]} 35. Ke3 {[%emt 0:00:34]} Bc4 {[%emt 0:00:22]} 36. Bg7 {[%emt 0:00:12]} Kc6 {[%emt 0:00:13]} 37. Kd4 {[%emt 0:00:12]} Ba2 {[%emt 0:00:11]} 38. Bf8 {[%emt 0:00:37]} Bb1 {[%emt 0:00:15]} 39. Be7 {[%emt 0:00:23]} Bf5 {[%emt 0:02:05]} 40. Bf8 {[%emt 0:01:10]} Kd7 {[%emt 0:00:24]} 41. Bg7 {[%emt 0:30:14]} a5 {[%emt 0:30:54]} 42. Bf8 {[%emt 0:00:29]} Kc6 {[%emt 0:01:17]} 43. Be7 {[%emt 0:00:07]} b5 {[%emt 0:02:31]} 44. Bd8 {[%emt 0:00:41]} a4 {[%emt 0:00:04]} 45. Be7 {[%emt 0:00:06]} Bc2 {[%emt 0:00:10]} 46. Bf8 {[%emt 0:00:10]} Bb3 {[%emt 0:00:31]} 47. Be7 {[%emt 0:00:23]} Kd7 {[%emt 0:00:04]} 48. Bf8 {[%emt 0:00:08]} Bc4 {[%emt 0:00:06]} 49. Bg7 {[%emt 0:00:28]} Ke7 {[%emt 0:00:09]} 50. Bf6+ {[%emt 0:00:47]} Kf7 {[%emt 0:00:06]} 51. Bd8 {[%emt 0:00:36]} Ba2 {[%emt 0:00:06]} 52. Ke4 {[%emt 0:00:49]} Ke8 {[%emt 0:00:05]} 53. Bf6 {[%emt 0:00:08]} Kd7 {[%emt 0:00:02]} 54. Kd4 {[%emt 0:00:07]} Bb1 {[%emt 0:00:48]} 55. Bg7 {[%emt 0:00:09]} Ke7 {[%emt 0:00:28]} 56. Bf6+ {[%emt 0:02:00]} Kf7 {[%emt 0:00:01]} 57. Bh8 {[%emt 0:00:07] [#]} (57. c4 $11) 57... Bc2 {[%emt 0:00:04]} (57... Ba2 $1 $17) 58. Ke3 {[%emt 0:00:26]} (58. c4 $1 $11) 58... Bf5 {[%emt 0:00:38]} ({Black should play} 58... Bb3 $17) 59. Kd4 $1 $11 {[%emt 0:00:01]} Bh3 {[%emt 0:00:22]} 60. Ke3 {[%emt 0:00:10]} (60. c4 $1 $11 {keeps the balance.}) 60... Bg2 $17 {[%emt 0:00:16]} 61. Kd4 {[%emt 0:00:28] White happily takes the draw.   Weighted Error Value: White=0.14 (very precise) /Black=0.12 (very precise)} 1/2-1/2

[Event "Lliga Catalana DH 2023"]
[Site "Catalonia"]
[Date "2023.02.04"]
[Round "3.5"]
[White "Lorenzo De La Riva, Lazaro"]
[Black "Matnadze Bujiashvili, Ann"]
[Result "1/2-1/2"]
[ECO "D35"]
[WhiteElo "2419"]
[BlackElo "2392"]
[Annotator "TA"]
[PlyCount "142"]
[EventDate "2023.01.24"]
[EventType "team-tourn"]
[EventCountry "ESP"]
[SourceTitle "playchess.com"]
[Source "ChessBase"]
[SourceQuality "1"]
[TimeControl "40/5400+30:1800+30"]

{[%evp 15,142,21,16,32,36,4,22,7,10,-12,-8,-8,-2,-11,0,0,0,0,0,-25,0,-27,0,-12,-16,-15,0,-3,-7,-30,0,-8,0,-20,0,0,0,0,0,0,0,0,0,0,0,0,54,14,4,0,0,0,0,0,0,0,0,0,0,0,16,12,13,12,13,12,14,34,28,14,70,64,81,71,121,34,34,34,41,12,11,14,47,55,51,15,36,36,61,25,35,0,0,0,0,0,0,0,0,0,0,0,0,0,0,0,0,0,0,0,0,0,0,0,0,0,0,0,0,0,29975,0,0,0,0,0,0,0,0]} 1. d4 Nf6 2. c4 e6 3. Nc3 d5 4. cxd5 exd5 5. Bg5 c6 6. e3 Be7 7. Bd3 Nbd7 {[%cal Bb8d7,Bd7f8,Bf8e6][%mdl 32]} 8. Nf3 Nf8 9. Ne5 {D35: Queen's Gambit Declined: Exchange Variation.} Ne6 10. Bh4 g6 {[#]} 11. f3 $146 ({Predecessor:} 11. O-O Ng7 12. b4 a6 13. Rb1 Nf5 14. Bg5 h6 15. Bf4 Nh5 16. Ne2 Nxf4 17. exf4 {1-0 Georgiev,K (2608)-Pantev,V (2435) Nea Moudania op 2nd 2016 (7)}) 11... Nd7 12. Bg3 Nxe5 13. Bxe5 Bh4+ 14. Bg3 Bxg3+ (14... Qg5 {looks sharper.} 15. Kf2 O-O 16. Qd2 Re8) 15. hxg3 Qg5 16. Kf2 {Active counter play!} h5 17. b4 Bd7 (17... Ng7 $5 {[%cal Re8g8]}) 18. Qb3 Kf8 (18... O-O {keeps more tension.} 19. b5 Rfe8 20. Rae1 Rac8) 19. Ne2 {[%cal Bc3e2,Be2f4,Bf4d3,Bd3e5][%mdl 32]} Re8 20. Bc2 Kg7 21. Qc3 Qf6 22. Raf1 Nc7 23. a4 $1 {Prevents Nb5.} Re7 {aiming for ...Rhe8.} 24. Nf4 h4 25. gxh4 Rxh4 26. g3 Rxh1 27. Rxh1 Re8 28. Nd3 Bf5 29. Ne5 {[%cal Ob4b5]} Bxc2 30. Qxc2 {[%cal Ob4b5]} Qe7 (30... Ne6 $11) 31. Qc5 (31. g4 $5 {[%cal Rf3f4]}) 31... f6 (31... Na8 {simplifies} 32. Re1 Nc7 33. Qxe7 Rxe7 34. Rb1 g5) 32. Ng4 (32. Qxe7+ {simplifies} Rxe7 33. Nd3 Ne8 34. b5) 32... a6 33. Kg2 Ne6 34. Qxe7+ Rxe7 $11 {[%cal Be8e7,Be7c7,Bc7c2][%mdl 4128] Endgame KRN-KRN} 35. f4 Nd8 36. b5 cxb5 37. axb5 Rc7 38. Ra1 axb5 39. Rb1 Nf7 40. Rxb5 Nd6 41. Rxd5 Ne4 42. Rb5 Rc2+ (42... f5 $1 $11 43. Ne5 Rc2+ 44. Kf1 Nxg3+ 45. Ke1 Re2+ 46. Kd1 Rxe3) 43. Kh3 $14 Rc7 44. Rb2 Nd6 (44... g5 $142) 45. Nf2 (45. Rb6 $16 Rc6 46. Rxc6 bxc6 47. Kg2) 45... f5 46. Nd3 b5 47. Nc5 {[#] Black must now prevent Ne6+.} Re7 {Prevents Ne6+.} 48. Rb3 Ra7 49. g4 Kf7 50. Kg3 Ra1 51. g5 Ra2 52. Rb1 Ke7 53. Rh1 Nc4 54. Rh7+ Kd6 55. Rd7+ Kc6 56. Re7 Nd2 57. e4 Ra3+ 58. Kf2 Nxe4+ 59. Nxe4 fxe4 60. Rxe4 $11 {KR-KR} Kd5 {Prevents Re6.} 61. Re5+ Kxd4 62. Re6 (62. Rxb5 $5 Ke4 $8 63. Rb4+ Kf5 64. Rd4 $11) 62... b4 63. Rxg6 Ke4 64. Rf6 b3 65. g6 {Hoping for g7.} b2 66. Rb6 Kxf4 67. Rxb2 Rf3+ $2 {[%mdl 8192] [#]} (67... Ra8 $11) 68. Ke2 $2 (68. Kg1 $1 {mates} Rc3 69. g7 Rc1+ 70. Kh2 Rc8 71. Rf2+ Ke5 72. Rf8 Rc2+ 73. Kg3) 68... Rg3 {( -> ...Rg2+). The position is equal.} 69. Rb6 Kf5 70. Kf2 Rxg6 71. Rxg6 Kxg6 {Weighted Error Value: White=0.12 (very precise) /Black=0.09 (flawless)} 1/2-1/2